Cogmind - Beta 13 @@@ ROGUE MODE // 2024.04.17 @ 20:33:50 Player: Miguell Result: Destroyed by G-34 Mercenary with Small Laser Performance ------------- Evolutions (1) 500 Regions Visited (2) 400 Robots Destroyed (40) 200 Value Destroyed (700) 700 Prototype IDs (1) 20 Alien Tech Used (0) 0 Bonus (6) 6 TOTAL SCORE: 1826 Bonus ------- High Alert Combat Kills 6 Cogmind --------- Core Integrity 0/400 Matter 141/300 Energy 37/125 System Corruption 2% Temperature Cool (6) Movement Core (1400) Ox27 Location -9/Materials Parts ------- > --- POWER (1) -------- Light Ion Engine > --- PROPULSION (4) --- (None) > --- UTILITY (2) ------ Huge Storage Unit > --- WEAPON (2) ------- (None) > --- INVENTORY (25) --- Structural Scanner Terrain Scanner Targeting Computer Field Recycling Unit (0) Small Laser Small Laser Assault Rifle Welding Torch Peak State ------------ > --- POWER ------------ Light Ion Engine > --- PROPULSION ------- Aluminum Leg Aluminum Leg Aluminum Leg Aluminum Leg > --- UTILITY ---------- Huge Storage Unit Field Recycling Unit > --- WEAPON ----------- Rocket Launcher Rocket Launcher > --- INVENTORY -------- Light Ion Engine Structural Scanner Targeting Computer Shield Generator Shield Generator Small Laser Small Laser Assault Rifle [Rating: 13] Favorites ----------- Power Light Ion Engine Engine Light Ion Engine Propulsion Aluminum Leg Treads Light Treads Leg Aluminum Leg Utility Huge Storage Unit Device Field Recycling Unit Storage Huge Storage Unit Processor Targeting Computer Weapon Rocket Launcher Energy Gun Medium Laser Ballistic Gun Assault Rifle Launcher Rocket Launcher Build | -11 -10 -9 ------- Run | Yrd Mat Mat Slots Evolved 2 | . . 2 Power . | . . . Propulsion 2 | . . 2 Utility . | . . . Weapon . | . . . Parts Attached 30 | 6 13 11 Power 4 | 1 2 1 Engine 4 | 1 2 1 Core . | . . . Reactor . | . . . Propulsion 9 | 2 5 2 Treads 2 | 2 . . Leg 7 | . 5 2 Wheel . | . . . Hover . | . . . Flight . | . . . Utility 9 | 1 3 5 Device 5 | . 1 4 Storage 2 | 1 1 . Processor 2 | . 1 1 Hackware . | . . . Protection . | . . . Artifact . | . . . Weapon 8 | 2 3 3 Energy Gun 3 | 1 . 2 Energy Cannon . | . . . Ballistic Gun 1 | 1 . . Ballistic Cannon . | . . . Launcher 4 | . 3 1 Special Weapon . | . . . Impact Weapon . | . . . Slashing Weapon . | . . . Piercing Weapon . | . . . Special Melee Weapon . | . . . Unidentified Prototypes 1 | . . 1 Parts Lost 10 | . . 10 Power 1 | . . 1 Propulsion 4 | . . 4 Utility 2 | . . 2 Weapon 3 | . . 3 Highest Loss Streak 9 | . . 9 To Critical Strikes . | . . . Average Slot Usage (%) 96 | . 98 92 Engine 12 | . 13 9 Treads 1 | . 2 . Leg 30 | . 25 39 Device 10 | . 11 9 Storage 13 | . 14 11 Processor 1 | . 1 . Energy Gun 4 | . 2 7 Ballistic Gun 1 | . 2 . Launcher 19 | . 22 13 Naked Turns . | . . . Heaviest Build 99 | 14 99 99 Greatest Support 40 | 40 40 40 Greatest Overweight (x) 27 | 4 4 27 Average Overweight (x) 1 | . 1 2 Largest Inventory Capacity 25 | 8 25 25 Average Capacity 17 | 7 16 25 Most Carried 10 | 6 8 10 Average Carried 6 | 4 6 8 Final Capacity 25 | 8 25 25 Final Carried 8 | 6 6 8 Class Distribution -------------------- 100% | Mutant Dominant Class ---------------- Mutant | -10/Materials Mutant | -9/Materials Resources | -11 -10 -9 ----------- Run | Yrd Mat Mat Matter Collected 660 | 261 130 269 Remotely . | . . . Salvage Created 762 | . 299 463 Parts 59 | . 28 31 Haulers Intercepted 2 | . 1 1 Recyclers Shooed 2 | . 1 1 Parts Field Recycled . | . . . Retrieved Matter . | . . . Parts Self-Destructed . | . . . Prevented . | . . . Kills | -11 -10 -9 ------- Run | Yrd Mat Mat Combat Hostiles Destroyed 18 | . 10 8 Guns 4 | . 2 2 AOE 14 | . 8 6 Classes Destroyed 10 | . 8 2 Worker 6 | . 2 4 Builder 5 | . 1 4 Tunneler 3 | . 2 1 Hauler 2 | . 1 1 Recycler 1 | . . 1 Mechanic 1 | . . 1 Operator 1 | . 1 . Watcher 3 | . 2 1 Swarmer 6 | . 6 . Grunt 12 | . 4 8 Best Kill Streak 7 | . 5 7 Combat Bots Only 3 | . 3 3 Max Kills in Single Turn 5 | . 5 4 Gunslinging . | . . . Exploded 3 | . 3 1 Melee . | . . . Uniques/NPCs Destroyed . | . . . Combat | -11 -10 -9 -------- Run | Yrd Mat Mat Hostile Shots Fired 155 | . 29 126 Missed 42 | . 6 36 Damage Taken 1501 | . 224 1277 Core 420 | . 20 400 Absorbed by Shields 95 | . . 95 Core Remaining (%) 96 | 100 92 . Volleys Fired 44 | 1 18 25 Largest 2 | 2 2 2 Hottest 89 | 70 70 89 Shots Fired 72 | 2 36 34 Gun 42 | 2 18 22 Cannon . | . . . Launcher 30 | . 18 12 Special . | . . . Kinetic 10 | 1 9 . Thermal 32 | 1 9 22 Explosive 30 | . 18 12 Electromagnetic . | . . . Robot Hit Streak 7 | . 7 4 Robot Miss Streak 4 | . 4 3 Penetration Max . | . . . Secondary Targets 1 | . 1 . Max Gunslinging Chain 1 | . 1 . Shots Hit Robots 36 | . 19 17 Core Hits 52 | . 24 28 Critical Kills . | . . . Critical Parts Destroyed . | . . . Critical Strikes 3 | . 3 . Burn 3 | . 3 . Melee Attacks . | . . . Impact . | . . . Slashing . | . . . Piercing . | . . . Sneak Attacks . | . . . Combat Hostiles . | . . . Follow-up Attacks . | . . . Damage Inflicted 2640 | . 1107 1533 Guns 344 | . 165 179 Cannons . | . . . Explosions 2296 | . 942 1354 Melee . | . . . Ramming . | . . . Kinetic 90 | . 90 . Thermal 315 | . 136 179 Explosive 2235 | . 881 1354 Electromagnetic . | . . . Impact . | . . . Slashing . | . . . Piercing . | . . . Highest Corruption 2 | . 1 2 Average Corruption 1 | . 1 2 Corruption Purged . | . . . Corruption Blocked . | . . . Effects 4 | . 4 . Matter Fused 1 | . 1 . Heat Flow Errors 2 | . 2 . Alerts 1 | . 1 . Overload Shots . | . . . Overflow Damage 48 | . 24 24 Projectiles . | . . . Explosions 48 | . 24 24 Melee . | . . . Knockbacks . | . . . Impact . | . . . Kinetic . | . . . Secondary . | . . . Self-Inflicted Damage 179 | . 2 177 Shots 7 | . 1 6 Rammed . | . . . Targets Rammed . | . . . Kicked . | . . . Crushed . | . . . Highest Temperature 278 | 9 278 141 Average Temperature 65 | 6 79 39 Received Heat Transfer 612 | . 84 528 Siege Activations . | . . . Robots Corrupted . | . . . Combat Hostiles . | . . . Parts Fried . | . . . Impact Corruptions . | . . . Robots Melted . | . . . Combat Hostiles . | . . . Parts Melted 1 | . 1 . Heat Transferred 891 | . 494 397 Parts Sabotaged . | . . . Parts Stolen . | . . . Parts Stripped . | . . . Power Chain Reactions . | . . . Alert | -11 -10 -9 ------- Run | Yrd Mat Mat Peak Influence 465 | . 465 367 Initial 50 | . . 50 Average 148 | . 197 126 Maximum Alert Level 2 | . 2 1 Low Security (%) 56 | 100 34 81 Level 1 43 | . 65 18 Level 2 . | . . . Level 3 . | . . . Level 4 . | . . . Level 5 . | . . . High Security . | . . . Max Security . | . . . Squads Dispatched 4 | . 1 3 Investigation 1 | . . 1 Extermination . | . . . Reinforcement 3 | . 1 2 Assault . | . . . Garrison . | . . . Intercept . | . . . Searches Triggered . | . . . Construction Impeded 1 | . . 1 Haulers Reinforced . | . . . Active Scanning Responses . | . . . Cargo Convoy Interrupts . | . . . Stealth | -11 -10 -9 --------- Run | Yrd Mat Mat Distress Signals 2 | . 1 1 Communications Jammed . | . . . Distress Signals . | . . . Times Spotted 28 | . 13 15 Peak Tracking Total 8 | . 4 8 Tactical Retreats . | . . . Traps | -11 -10 -9 ------- Run | Yrd Mat Mat Traps Triggered 1 | . 1 . Indirectly . | . . . Trap Hack Attempts . | . . . Triggered . | . . . Disarmed . | . . . Reprogrammed . | . . . Reused . | . . . Traps Extracted . | . . . Installed . | . . . Triggered . | . . . Machines | -11 -10 -9 ---------- Run | Yrd Mat Mat Machines Disabled 8 | . 6 2 Max in Single Turn 4 | . 4 2 Machines Repaired . | . . . Machines Dismantled . | . . . Machines Sabotaged . | . . . Overloaded Fab Kills . | . . . Hacking | -11 -10 -9 --------- Run | Yrd Mat Mat Machines Accessed 4 | . 3 1 Terminals 4 | . 3 1 Fabricators . | . . . Repair Stations . | . . . Recycling Units . | . . . Scanalyzers . | . . . Garrison Access . | . . . Total Hacks 12 | . 5 7 Successful 7 | . 3 4 Failed 5 | . 2 3 Catastrophic 1 | . 1 . Database Lockouts . | . . . Manual . | . . . Terminals 12 | . 5 7 Fabricators . | . . . Repair Stations . | . . . Recycling Units . | . . . Scanalyzers . | . . . Garrison Access . | . . . Terminal Hacks 7 | . 3 4 Record 2 | . . 2 Robot Analysis 1 | . . 1 Emergency Access Points 1 | . 1 . Terminal Index 1 | . 1 . Locate Traps 1 | . . 1 Dispatch Records 1 | . 1 . Fabricator Hacks . | . . . Repair Station Hacks . | . . . Recycling Unit Hacks . | . . . Scanalyzer . | . . . Garrison Access Hacks . | . . . Unauthorized Hacks . | . . . Terminals . | . . . Fabricators . | . . . Repair Stations . | . . . Recycling Units . | . . . Scanalyzers . | . . . Garrison Access . | . . . Data Cores Recovered . | . . . Used . | . . . Hacking Detections 4 | . 3 1 Full Trace Events 2 | . 1 1 Feedback Events 1 | . 1 . Corruption 1 | . 1 . Feedback Blocked . | . . . Robot Schematics Acquired . | . . . Robots Built . | . . . Authchips . | . . . Time . | . . . Total Robot Build Rating . | . . . Part Schematics Acquired . | . . . Parts Built . | . . . Authchips . | . . . Time . | . . . Total Part Build Rating . | . . . Parts Repaired . | . . . Time . | . . . Parts Recycled . | . . . Recycled Matter . | . . . Retrieved Matter . | . . . Retrieved Components . | . . . Parts Scanalyzed . | . . . Part Schematics Acquired . | . . . Parts Damaged . | . . . Bothacking | -11 -10 -9 ------------ Run | Yrd Mat Mat Used RIF Installer . | . . . Robots Hacked . | . . . Non-combat . | . . . Combat . | . . . Robot Hacks Applied . | . . . Relay Couplers Released . | . . . Fabnet Peak Effective % . | . . . Robots Rewired . | . . . Allies Hacked . | . . . Hacks Repelled . | . . . Allies | -11 -10 -9 -------- Run | Yrd Mat Mat Total Allies . | . . . Largest Group . | . . . Highest-Rated Group . | . . . Highest-Rated Ally . | . . . Total Orders . | . . . Ally Attacks . | . . . Total Damage . | . . . Kills . | . . . Allies Corrupted . | . . . Allies Melted . | . . . Intel | -11 -10 -9 ------- Run | Yrd Mat Mat Robot Analysis Total 1 | . . 1 Derelict Logs Recovered . | . . . Drone Launches . | . . . Drone Recoveries . | . . . Exploration | -11 -10 -9 ------------- Run | Yrd Mat Mat Turns Passed 1532 | 232 892 408 Spaces Moved 557 | 125 319 113 Core 27 | 26 . 1 Treads 146 | 99 47 . Legs 384 | . 272 112 Wheels . | . . . Hover . | . . . Flight . | . . . Fastest Speed 50 | 50 120 260 Average Speed 237 | 169 251 271 Slowest Speed 1400 | 250 400 1400 Overloaded Moves . | . . . Propulsion Burnouts . | . . . Robots Hopped . | . . . Cave-ins Triggered 2 | . . 2 Exploration Rate (%) 24 | 9 52 11 Regions Visited 2 Branch Regions . Pre-discovered Areas . | . . . Known Exits Taken . | . . . Unknown Exits Taken 2 | 1 1 . Scrap Searched . | . . . Spaces Dug . | . . . Terrain Destroyed 167 | . 61 106 Melee . | . . . Projectile . | . . . AOE 167 | . 61 106 Terrain Rammed . | . . . Walls Destroyed . | . . . Machines Disabled . | . . . Actions | -11 -10 -9 --------- Run | Yrd Mat Mat Total 696 | 143 377 176 Wait 21 | . 2 19 Move 555 | 124 318 113 Hop . | . . . Pick Up 35 | 12 15 8 Fast Attach . | . . . Attach 18 | 6 7 5 Detach . | . . . Swap 12 | . 6 6 Drop 11 | . 11 . Fire 44 | 1 18 25 Melee . | . . . Ram . | . . . Kick . | . . . Crush . | . . . Escape Stasis . | . . . Rewire . | . . . Trap . | . . . Miscellaneous . | . . . Route ------- -11/Scrapyard -10/Materials -9/Materials History --------- Turn | Location | Event 6 | -11/Scrapyard | Discovered new exit (range 16) 233 | -11/Scrapyard | Entered Materials 306 | -10/Materials | Build established: Mutant 1085 | -10/Materials | Discovered new exit (range 9) 1125 | -10/Materials | Entered another Materials area 1125 | -9/Materials | Evolved 2 slots: Propulsion x2 1512 | -9/Materials | Core integrity fell below 50% 1522 | -9/Materials | Crushed by falling debris 1525 | -9/Materials | Core integrity fell below 20% 1527 | -9/Materials | Crushed by falling debris 1533 | -9/Materials | Destroyed by G-34 Mercenary with Small Laser Last Messages --------------- 01518_ M-13 Machinist repairs Sml. Laser. 01518_ U-05 Engineer lays Concrete. 01519_ Destroyed Sml. Laser. 01519_ G-34 Mercenary destroyed. 01519_ U-05 Engineer destroyed. 01520_ U-05 Engineer builds a Wall. 01521_ Destroyed Heat Sink. 01521_ G-34 Mercenary destroyed. 01521_ M-13 Machinist destroyed. 01521_ Rocket Launcher destroyed. 01522_ The unstable cave ceiling collapses. 01522_ Crushed by falling debris. [Achievement: Unlikely Earthworm] 01525_ U-05 Engineer lays Concrete. 01526_ The unstable cave ceiling collapses. 01526_ U-05 Engineer lays Concrete. 01527_ The unstable cave ceiling collapses. 01527_ Crushed by falling debris. 01527_ Shield Generator destroyed. 01527_ System corrupted by crushing effect (+2). Map ----- +----------------------------------------------------+ | ??????????????? #### # #??? | | ??????????????? #??# ##################??? | | ????????????????# #??### ###???????????????????? | | ???????????? ???# ##???# #?????????????????????? | | ????????????????# #????# #?????????????????????? | | ????????????????#= ######+#?????????????????????? | | ????????????????# # #???#?#???????????????? | | ????????#??????## #[[ #?????????????????????? | | ??????? ???????## # [! #?????????????????????? | | ???????????????## *+[ #?????#???????????????? | | ???????#???????# # | #???#?????????????????? | | ???????????????# # #?????????????????????? | | ???????????????## ## ####?#???????????????????? | | ???????????????## #####?????#?#????????????????? | | ?????????##+##### ##????#??#???????????????????? | | ?????????# # ##????#??????????????????????? | | ?????????# + #??????????#?????????????????? | | ?????????# """# #?????#???#??????????????????? | | ?????????# """# ##???????????????????????????? | | ?????????# """# #???#???????????????????????? | | ?????????# ###??#????##????????????????? | | ???????"??####?# #??????#????????????????????? | | ???????????????# % #???#?#???????#?????????????? | | ???????????????# #?########??????#???????????? | | ??????????#????# #### ##?????????????????? | | ????????????#?### # @# ###???????????????? | | ??????? ?######## =!!Y# # # # ######????????? | | ?????????# %* ?????? | | ?????????# = % !%g! ?????? | | ?????????# g%!%= !% ?????? | | ?????????# # ## # ### ######## ???????? | | ?????????# # " " # # # ##??#???????????? | | ????? ???# ??# """ # # ###?##??????????????? | | ?????#???#??? """ ########???#??????????????? | | ????????????? "" #??#??????????????????????? | | ????????????? #?????????????????????????? | | ???????????? # #########???????? ????????????????? | | ?????????????????##??????????????????????????????? | | ????????????????????????????????"????????????????? | | ????????????????? ???????????????????????????????? | | ?????????????????????????????????????????????????? | | ?????????????????????????????????????????????????? | | ??????????????????#??? ??????????????????????????? | | ?????????????????????????????????????????????????? | | ?????????????????????????????????????????????????? | | ?????????????????????????????????????????????????? | | ?????????????????????????????????????????????????? | | ?????????????????????????????????????????????????? | | ?????????????????????????????????????????????????? | | ?????????????????????????????????????????????????? | +----------------------------------------------------+ Best States ------------- Heat Dissipation 28 Energy Generation 10 Energy Capacity 250 Matter Stores 300 Matter Capacity 300 Sight Range 16 Terrain Scan Range 14 Terrain Scan Density 85 Evasion (%) 54 Targeting Accuracy 5 Recoil Reduction 2 Item Schematics ----------------- None Robot Schematics ------------------ None Fabricated ------------ Nothing Alien Tech Used ----------------- None Achievements -------------- Unlikely Earthworm Challenges ------------ None Game ------ Seed PulsePowerNanoactuators Manual? 0 Play Time 00:26:41 Cumulative 1.1 hours Start 2024.04.17 @ 11:01:00 End 2024.04.17 @ 20:33:50 Sessions 4 Manual Loads 0 Difficulty Rogue Special Mode None Game No. 3 Rogue 3 Adventurer 0 Explorer 0 Win Type - Total 0 Types 0/0/0/0/0/0/0/0/0 Lore% 1 Gallery% 4 Achievement% 5 Wizard Run 0 Options --------- Layout 1 ASCII 0 Keyboard 0 Movement Mouse Keybinds 0 Fullscreen 1 Font 24/Smallcaps Map View 50x35 Zoom Use 0% Tactical HUD 1 Map Filters NONE Filters NONE Steam 0 RUN: 8ea305f1-2bbe-4cf2-9026-9830b736bf06